[Event "*** Titled Tuesday Blitz"]
[Site "Chess.com"]
[Date "2020.11.24"]
[Round "6"]
[White "Algeriano22"]
[Black "Lestofante90"]
[Result "1-0"]
[WhiteElo "2632"]
[BlackElo "2792"]
[TimeControl "180+1"]
[EndTime "11:24:12 PST"]
[Termination "Algeriano22 won by resignation"]

1. e4 {[%clk 0:02:59.7]} 1... c6 {[%clk 0:02:59.6]} 2. d4 {[%clk 0:02:59.1]}
2... d5 {[%clk 0:03:00.3]} 3. e5 {[%clk 0:02:59.6]} 3... Bf5 {[%clk 0:03:00.7]}
4. h4 {[%clk 0:03:00]} 4... h5 {[%clk 0:02:59.5]} 5. c4 {[%clk 0:03:00.1]} 5...
e6 {[%clk 0:02:59.4]} 6. Nc3 {[%clk 0:03:00.6]} 6... Ne7 {[%clk 0:02:58.3]} 7.
Nge2 {[%clk 0:03:00.4]} 7... Nd7 {[%clk 0:02:56.5]} 8. Ng3 {[%clk 0:02:59]} 8...
Bg6 {[%clk 0:02:56.9]} 9. Bg5 {[%clk 0:02:56.4]} 9... Qb6 {[%clk 0:02:57.3]} 10.
Qb3 {[%clk 0:02:11.5]} 10... dxc4 {[%clk 0:02:56.4]} 11. Bxc4 {[%clk 0:02:11]}
11... Qxb3 {[%clk 0:02:56.2]} 12. Bxb3 {[%clk 0:02:07.2]} 12... Nf5 {[%clk
0:02:52.7]} 13. Nxf5 {[%clk 0:01:57.5]} 13... Bxf5 {[%clk 0:02:53.6]} 14. O-O-O
{[%clk 0:01:57.3]} 14... Be7 {[%clk 0:02:53.3]} 15. Be3 {[%clk 0:01:45.6]} 15...
Nb6 {[%clk 0:02:52.1]} 16. Bc2 {[%clk 0:01:45.4]} 16... Bxc2 {[%clk 0:02:34]}
17. Kxc2 {[%clk 0:01:45.5]} 17... O-O-O {[%clk 0:02:29.5]} 18. Bg5 {[%clk
0:01:45.8]} 18... f6 {[%clk 0:02:13]} 19. exf6 {[%clk 0:01:36.7]} 19... gxf6
{[%clk 0:02:13.9]} 20. Bc1 {[%clk 0:01:32.2]} 20... Rhg8 {[%clk 0:02:13]} 21. g3
{[%clk 0:01:31.5]} 21... Rg4 {[%clk 0:02:10.5]} 22. Bf4 {[%clk 0:01:23.8]} 22...
Nd5 {[%clk 0:02:09.8]} 23. Nxd5 {[%clk 0:01:22.3]} 23... cxd5 {[%clk 0:02:10.7]}
24. Rhe1 {[%clk 0:01:18.2]} 24... Kd7 {[%clk 0:02:10.6]} 25. Kd3 {[%clk
0:01:18.7]} 25... Rc8 {[%clk 0:02:10.9]} 26. Rc1 {[%clk 0:01:18.5]} 26... Rc6
{[%clk 0:02:11.4]} 27. f3 {[%clk 0:01:07.7]} 27... Rg8 {[%clk 0:02:10.1]} 28.
Rg1 {[%clk 0:01:04.9]} 28... f5 {[%clk 0:02:06.2]} 29. Rxc6 {[%clk 0:01:03.3]}
29... bxc6 {[%clk 0:02:07.1]} 30. Rc1 {[%clk 0:00:47.3]} 30... a5 {[%clk
0:02:05]} 31. Rc3 {[%clk 0:00:39.3]} 31... a4 {[%clk 0:01:59.9]} 32. b3 {[%clk
0:00:36.1]} 32... a3 {[%clk 0:01:56.2]} 33. Ke3 {[%clk 0:00:34.9]} 33... Bb4
{[%clk 0:01:54.7]} 34. Rc2 {[%clk 0:00:35.1]} 34... Rg7 {[%clk 0:01:36.7]} 35.
Be5 {[%clk 0:00:34.9]} 35... Rg8 {[%clk 0:01:36.6]} 36. Bf4 {[%clk 0:00:35]}
36... Be7 {[%clk 0:01:24.8]} 37. Be5 {[%clk 0:00:33.2]} 37... Bf8 {[%clk
0:01:15.4]} 38. Bf4 {[%clk 0:00:24.6]} 38... Bb4 {[%clk 0:01:14.8]} 39. Be5
{[%clk 0:00:24.2]} 39... Ba5 {[%clk 0:01:15.2]} 40. Bf4 {[%clk 0:00:22.6]} 40...
Bb6 {[%clk 0:01:15.4]} 41. Kd3 {[%clk 0:00:22]} 41... Bc7 {[%clk 0:01:12.5]} 42.
Ke3 {[%clk 0:00:21.9]} 42... Bd8 {[%clk 0:01:09]} 43. Kd3 {[%clk 0:00:21.4]}
43... Bf6 {[%clk 0:01:08.3]} 44. Rc5 {[%clk 0:00:20.1]} 44... Ra8 {[%clk
0:01:07.6]} 45. Rc2 {[%clk 0:00:19]} 45... Be7 {[%clk 0:01:04]} 46. Rg2 {[%clk
0:00:19]} 46... c5 {[%clk 0:00:59.3]} 47. dxc5 {[%clk 0:00:19.2]} 47... Bxc5
{[%clk 0:00:59.4]} 48. g4 {[%clk 0:00:19]} 48... fxg4 {[%clk 0:00:59.5]} 49.
fxg4 {[%clk 0:00:19.5]} 49... Rg8 {[%clk 0:01:00.1]} 50. g5 {[%clk 0:00:19.4]}
50... Bd6 {[%clk 0:00:59.4]} 51. Bxd6 {[%clk 0:00:18.2]} 51... Kxd6 {[%clk
0:01:00.3]} 52. Rf2 {[%clk 0:00:19.1]} 52... e5 {[%clk 0:00:50.5]} 53. Rf6+
{[%clk 0:00:19.3]} 53... Kc5 {[%clk 0:00:51.1]} 54. Rh6 {[%clk 0:00:18.9]} 54...
e4+ {[%clk 0:00:51.7]} 55. Ke3 {[%clk 0:00:18.8]} 55... Rf8 {[%clk 0:00:52.1]}
56. Rxh5 {[%clk 0:00:18.6]} 56... Rf3+ {[%clk 0:00:51.8]} 57. Ke2 {[%clk
0:00:19]} 57... Rg3 {[%clk 0:00:51.3]} 58. Kf2 {[%clk 0:00:19.2]} 58... Rxb3
{[%clk 0:00:50.1]} 59. g6 {[%clk 0:00:18.3]} 59... Rb2+ {[%clk 0:00:48.6]} 60.
Kg3 {[%clk 0:00:15.4]} 60... Rb8 {[%clk 0:00:43.5]} 61. g7 {[%clk 0:00:14.4]}
61... Rg8 {[%clk 0:00:38.1]} 62. Rg5 {[%clk 0:00:14.8]} 62... Kd4 {[%clk
0:00:29.8]} 63. h5 {[%clk 0:00:15]} 63... e3 {[%clk 0:00:29.1]} 64. h6 {[%clk
0:00:15.2]} 64... Kc3 {[%clk 0:00:17.6]} 65. h7 {[%clk 0:00:14.3]} 65... e2
{[%clk 0:00:16.6]} 66. Kf2 {[%clk 0:00:13.2]} 66... Re8 {[%clk 0:00:14.4]} 67.
Ke1 {[%clk 0:00:11.8]} 67... Kd3 {[%clk 0:00:11.9]} 68. g8=Q {[%clk 0:00:11.4]}
68... Re4 {[%clk 0:00:12.8]} 69. Qxd5+ {[%clk 0:00:11.3]} 69... Ke3 {[%clk
0:00:13.7]} 70. Qxe4+ {[%clk 0:00:11.5]} 70... Kxe4 {[%clk 0:00:14.6]} 71. Kxe2
{[%clk 0:00:11.9]} 1-0

[Event "*** Titled Tuesday Blitz"]
[Site "Chess.com"]
[Date "2020.11.24"]
[Round "6"]
[White "anon569"]
[Black "kkpanu9"]
[Result "1-0"]
[WhiteElo "2286"]
[BlackElo "2057"]
[TimeControl "180+1"]
[EndTime "11:24:19 PST"]
[Termination "anon569 won by checkmate"]

1. e4 {[%clk 0:03:00.9]} 1... c5 {[%clk 0:02:59.9]} 2. Nf3 {[%clk 0:03:00.4]}
2... d6 {[%clk 0:03:00.3]} 3. d4 {[%clk 0:03:00.5]} 3... cxd4 {[%clk 0:03:01.2]}
4. Nxd4 {[%clk 0:03:00.8]} 4... Nf6 {[%clk 0:03:01.6]} 5. Nc3 {[%clk 0:03:01.4]}
5... g6 {[%clk 0:03:02.1]} 6. Be3 {[%clk 0:03:01.1]} 6... Bg7 {[%clk 0:03:02.5]}
7. f3 {[%clk 0:03:01]} 7... O-O {[%clk 0:03:02.5]} 8. Bc4 {[%clk 0:02:59.2]}
8... Nc6 {[%clk 0:03:02.3]} 9. Qd2 {[%clk 0:02:59.4]} 9... Bd7 {[%clk
0:03:02.5]} 10. h4 {[%clk 0:02:58.6]} 10... Rc8 {[%clk 0:02:57.9]} 11. Bb3
{[%clk 0:02:56.4]} 11... h5 {[%clk 0:02:58.1]} 12. O-O-O {[%clk 0:02:54.2]}
12... Ne5 {[%clk 0:02:47.6]} 13. Bh6 {[%clk 0:02:52.6]} 13... Nc4 {[%clk
0:02:46.3]} 14. Bxc4 {[%clk 0:02:52.3]} 14... Rxc4 {[%clk 0:02:45.9]} 15. Bxg7
{[%clk 0:02:52.9]} 15... Kxg7 {[%clk 0:02:46.7]} 16. g4 {[%clk 0:02:53.4]} 16...
hxg4 {[%clk 0:02:43.4]} 17. h5 {[%clk 0:02:53.3]} 17... Rh8 {[%clk 0:02:43.5]}
18. hxg6 {[%clk 0:02:52.5]} 18... fxg6 {[%clk 0:02:43.5]} 19. f4 {[%clk
0:02:51.2]} 19... e5 {[%clk 0:02:08.4]} 20. fxe5 {[%clk 0:02:40.4]} 20... dxe5
{[%clk 0:02:07.5]} 21. Nde2 {[%clk 0:02:38.4]} 21... Qe8 {[%clk 0:01:42.1]} 22.
Qg5 {[%clk 0:02:08.1]} 22... Rh3 {[%clk 0:01:32.4]} 23. Rhf1 {[%clk 0:01:40.5]}
23... Rc6 {[%clk 0:01:10.2]} 24. Kb1 {[%clk 0:01:21.4]} 24... Rh5 {[%clk
0:00:49]} 25. Qd2 {[%clk 0:01:18.5]} 25... Be6 {[%clk 0:00:44]} 26. Ng3 {[%clk
0:01:15.4]} 26... Rh3 {[%clk 0:00:37.9]} 27. Qg5 {[%clk 0:01:06.9]} 27... Bc8
{[%clk 0:00:11.5]} 28. Nge2 {[%clk 0:00:58.5]} 28... b6 {[%clk 0:00:10.3]} 29.
Rf2 {[%clk 0:00:56.3]} 29... Rf3 {[%clk 0:00:08.9]} 30. Rdf1 {[%clk 0:00:50.9]}
30... Rxf2 {[%clk 0:00:07.9]} 31. Rxf2 {[%clk 0:00:50.8]} 31... Qh8 {[%clk
0:00:06.8]} 32. Qxe5 {[%clk 0:00:44.5]} 32... Re6 {[%clk 0:00:04.3]} 33. Qd4
{[%clk 0:00:42.4]} 33... Qh1+ {[%clk 0:00:02.9]} 34. Nc1 {[%clk 0:00:40.8]}
34... Qe1 {[%clk 0:00:02]} 35. Re2 {[%clk 0:00:32.9]} 35... Qf1 {[%clk
0:00:01.6]} 36. Qd8 {[%clk 0:00:18.8]} 36... Ba6 {[%clk 0:00:01.1]} 37. Rd2
{[%clk 0:00:11.5]} 37... Qf4 {[%clk 0:00:01.6]} 38. Rd4 {[%clk 0:00:04.3]} 38...
g3 {[%clk 0:00:01.9]} 39. e5 {[%clk 0:00:03.4]} 39... Qxe5 {[%clk 0:00:02.1]}
40. Rd2 {[%clk 0:00:03.1]} 40... g2 {[%clk 0:00:02.2]} 41. Nd5 {[%clk
0:00:03.4]} 41... Re8 {[%clk 0:00:02.4]} 42. Qxf6+ {[%clk 0:00:02]} 42... Qxf6
{[%clk 0:00:02.1]} 43. Nxf6 {[%clk 0:00:02.7]} 43... Kxf6 {[%clk 0:00:03]} 44.
Rxg2 {[%clk 0:00:02.7]} 44... Re5 {[%clk 0:00:03.9]} 45. Rf2+ {[%clk 0:00:02.4]}
45... Rf5 {[%clk 0:00:04.4]} 46. Rg2 {[%clk 0:00:03.1]} 46... Rf1 {[%clk
0:00:04.5]} 47. b3 {[%clk 0:00:02.7]} 47... g5 {[%clk 0:00:05]} 48. Kb2 {[%clk
0:00:03.2]} 48... Kf5 {[%clk 0:00:04.9]} 49. Ne2 {[%clk 0:00:01.4]} 49... Bxe2
{[%clk 0:00:04.4]} 50. Rxe2 {[%clk 0:00:01.7]} 50... g4 {[%clk 0:00:05.2]} 51.
Re8 {[%clk 0:00:01.9]} 51... Kf4 {[%clk 0:00:05]} 52. Rf8+ {[%clk 0:00:02.1]}
52... Kg3 {[%clk 0:00:05.2]} 53. Rxf1 {[%clk 0:00:02.7]} 53... Kg2 {[%clk
0:00:05.2]} 54. Re1 {[%clk 0:00:02.7]} 54... g3 {[%clk 0:00:06.1]} 55. Kc3
{[%clk 0:00:02.8]} 55... Kf2 {[%clk 0:00:06.6]} 56. Rd1 {[%clk 0:00:01.3]} 56...
g2 {[%clk 0:00:07.2]} 57. Rb1 {[%clk 0:00:01.9]} 57... g1=Q {[%clk 0:00:07.1]}
58. Rxg1 {[%clk 0:00:02.4]} 58... Kxg1 {[%clk 0:00:08]} 59. Kb4 {[%clk
0:00:02.5]} 59... Kf2 {[%clk 0:00:08.5]} 60. Kb5 {[%clk 0:00:02.2]} 60... Ke3
{[%clk 0:00:08.4]} 61. Ka6 {[%clk 0:00:02.6]} 61... Kd4 {[%clk 0:00:08.5]} 62.
c4 {[%clk 0:00:03.1]} 62... Kc5 {[%clk 0:00:08.1]} 63. Kxa7 {[%clk 0:00:03.7]}
63... b5 {[%clk 0:00:08.6]} 64. cxb5 {[%clk 0:00:04.2]} 64... Kxb5 {[%clk
0:00:09.5]} 65. Kb7 {[%clk 0:00:04.1]} 65... Kb4 {[%clk 0:00:09.9]} 66. Kc6
{[%clk 0:00:04.6]} 66... Ka3 {[%clk 0:00:10.5]} 67. Kc5 {[%clk 0:00:04.8]} 67...
Kb2 {[%clk 0:00:08]} 68. b4 {[%clk 0:00:05.4]} 68... Ka3 {[%clk 0:00:07.2]} 69.
b5 {[%clk 0:00:06]} 69... Kb2 {[%clk 0:00:07.6]} 70. b6 {[%clk 0:00:06.6]} 70...
Ka1 {[%clk 0:00:07.8]} 71. b7 {[%clk 0:00:07.3]} 71... Kb2 {[%clk 0:00:08.7]}
72. b8=Q+ {[%clk 0:00:07.1]} 72... Ka1 {[%clk 0:00:09.6]} 73. Kc4 {[%clk
0:00:07.1]} 73... Kxa2 {[%clk 0:00:09.2]} 74. Kc3 {[%clk 0:00:07.6]} 74... Ka1
{[%clk 0:00:10.1]} 75. Qb2# {[%clk 0:00:08]} 1-0

[Event "*** Titled Tuesday Blitz"]
[Site "Chess.com"]
[Date "2020.11.24"]
[Round "6"]
[White "klimkoj"]
[Black "RD4ever"]
[Result "1/2-1/2"]
[WhiteElo "2628"]
[BlackElo "2816"]
[TimeControl "180+1"]
[EndTime "11:24:20 PST"]
[Termination "Game drawn by repetition"]

1. e4 {[%clk 0:02:18.3]} 1... e6 {[%clk 0:02:58.6]} 2. d4 {[%clk 0:02:18.1]}
2... d5 {[%clk 0:02:58.6]} 3. Nc3 {[%clk 0:02:18.3]} 3... Bb4 {[%clk 0:02:57.7]}
4. e5 {[%clk 0:02:18.4]} 4... c5 {[%clk 0:02:57.2]} 5. a3 {[%clk 0:02:18.5]}
5... Bxc3+ {[%clk 0:02:57.8]} 6. bxc3 {[%clk 0:02:19.4]} 6... Ne7 {[%clk
0:02:58.7]} 7. h4 {[%clk 0:02:18.9]} 7... Qc7 {[%clk 0:02:56.6]} 8. h5 {[%clk
0:02:19.2]} 8... h6 {[%clk 0:02:52.5]} 9. Rh3 {[%clk 0:02:05.3]} 9... b6 {[%clk
0:02:48.6]} 10. a4 {[%clk 0:02:00.1]} 10... Ba6 {[%clk 0:02:47.4]} 11. Bxa6
{[%clk 0:02:00.2]} 11... Nxa6 {[%clk 0:02:47.1]} 12. Qe2 {[%clk 0:02:00.5]}
12... Nb8 {[%clk 0:02:43.3]} 13. a5 {[%clk 0:01:59.3]} 13... bxa5 {[%clk
0:02:32.7]} 14. Ba3 {[%clk 0:01:53.9]} 14... Nd7 {[%clk 0:02:31.9]} 15. Nf3
{[%clk 0:01:43.8]} 15... Rb8 {[%clk 0:02:08.6]} 16. Nh4 {[%clk 0:01:38.7]} 16...
O-O {[%clk 0:01:23.5]} 17. Rg3 {[%clk 0:01:29.2]} 17... Nf5 {[%clk 0:01:16.6]}
18. Nxf5 {[%clk 0:01:22.1]} 18... exf5 {[%clk 0:01:17.5]} 19. Qf3 {[%clk
0:01:19.6]} 19... cxd4 {[%clk 0:01:12]} 20. Bd6 {[%clk 0:00:53.6]} 20... Qc6
{[%clk 0:00:50.7]} 21. cxd4 {[%clk 0:00:23.1]} 21... Qxc2 {[%clk 0:00:48.5]} 22.
Bxf8 {[%clk 0:00:17.9]} 22... Nxf8 {[%clk 0:00:49.4]} 23. Qd3 {[%clk 0:00:18.1]}
23... Qb2 {[%clk 0:00:46.6]} 24. Qa3 {[%clk 0:00:18.5]} 24... Qxd4 {[%clk
0:00:45.4]} 25. Qxa5 {[%clk 0:00:18.7]} 25... Rb2 {[%clk 0:00:41.5]} 26. Re3
{[%clk 0:00:17.5]} 26... f4 {[%clk 0:00:40.9]} 27. Re2 {[%clk 0:00:17.7]} 27...
Rxe2+ {[%clk 0:00:22.1]} 28. Kxe2 {[%clk 0:00:18.6]} 28... Qxe5+ {[%clk
0:00:23]} 29. Kf1 {[%clk 0:00:18.7]} 29... Qxh5 {[%clk 0:00:23.6]} 30. f3 {[%clk
0:00:17.2]} 30... Ne6 {[%clk 0:00:21.5]} 31. Qxa7 {[%clk 0:00:17.4]} 31... Qe5
{[%clk 0:00:20.4]} 32. Qa8+ {[%clk 0:00:16.7]} 32... Kh7 {[%clk 0:00:20.5]} 33.
Rd1 {[%clk 0:00:16.9]} 33... d4 {[%clk 0:00:20.5]} 34. Qa2 {[%clk 0:00:15.5]}
34... g6 {[%clk 0:00:19.6]} 35. Qc2 {[%clk 0:00:15.8]} 35... Kg7 {[%clk
0:00:19.9]} 36. Qc4 {[%clk 0:00:15.7]} 36... h5 {[%clk 0:00:20.3]} 37. Re1
{[%clk 0:00:16.2]} 37... Qf5 {[%clk 0:00:19.8]} 38. Rd1 {[%clk 0:00:15.5]} 38...
h4 {[%clk 0:00:19.7]} 39. Kg1 {[%clk 0:00:15.5]} 39... h3 {[%clk 0:00:19.9]} 40.
gxh3 {[%clk 0:00:15.4]} 40... Qxh3 {[%clk 0:00:20.8]} 41. Qd3 {[%clk 0:00:14.9]}
41... Qg3+ {[%clk 0:00:20.6]} 42. Kf1 {[%clk 0:00:15]} 42... Qh3+ {[%clk
0:00:21.1]} 43. Kf2 {[%clk 0:00:15]} 43... Qh2+ {[%clk 0:00:21]} 44. Kf1 {[%clk
0:00:15.5]} 44... Kh7 {[%clk 0:00:21.3]} 45. Rd2 {[%clk 0:00:14.5]} 45... Qh3+
{[%clk 0:00:21.4]} 46. Ke2 {[%clk 0:00:14.1]} 46... Kg7 {[%clk 0:00:17.9]} 47.
Kd1 {[%clk 0:00:13]} 47... Qh5 {[%clk 0:00:16.8]} 48. Re2 {[%clk 0:00:12.4]}
48... Qc5 {[%clk 0:00:16.8]} 49. Re4 {[%clk 0:00:11.6]} 49... Kf6 {[%clk
0:00:16.6]} 50. Qd2 {[%clk 0:00:11]} 50... g5 {[%clk 0:00:17]} 51. Qh2 {[%clk
0:00:10.3]} 51... Qd5 {[%clk 0:00:16.7]} 52. Qh6+ {[%clk 0:00:09.8]} 52... Ke7
{[%clk 0:00:17.2]} 53. Qh3 {[%clk 0:00:09.2]} 53... Qb3+ {[%clk 0:00:17.1]} 54.
Kd2 {[%clk 0:00:09.2]} 54... Qc3+ {[%clk 0:00:17]} 55. Ke2 {[%clk 0:00:09.2]}
55... Qc2+ {[%clk 0:00:17]} 56. Kf1 {[%clk 0:00:08.3]} 56... d3 {[%clk
0:00:17.5]} 57. Qf5 {[%clk 0:00:07.5]} 57... Qc1+ {[%clk 0:00:16.4]} 58. Kg2
{[%clk 0:00:07.2]} 58... Qd2+ {[%clk 0:00:16.2]} 59. Kh3 {[%clk 0:00:07.2]}
59... Qc3 {[%clk 0:00:07.2]} 60. Qxg5+ {[%clk 0:00:07.4]} 60... Kf8 {[%clk
0:00:07.5]} 61. Qd5 {[%clk 0:00:04.8]} 61... d2 {[%clk 0:00:05.7]} 62. Qd6+
{[%clk 0:00:05.1]} 62... Kg7 {[%clk 0:00:05.6]} 63. Kg4 {[%clk 0:00:05.8]} 63...
Kg6 {[%clk 0:00:05.1]} 64. Re5 {[%clk 0:00:05.6]} 64... Kf6 {[%clk 0:00:04.2]}
65. Rf5+ {[%clk 0:00:05.3]} 65... Kg7 {[%clk 0:00:04.6]} 66. Re5 {[%clk
0:00:06]} 66... Kg6 {[%clk 0:00:04.4]} 67. Rxe6+ {[%clk 0:00:05.4]} 67... fxe6
{[%clk 0:00:04]} 68. Qxe6+ {[%clk 0:00:06.3]} 68... Kg7 {[%clk 0:00:04.3]} 69.
Qe7+ {[%clk 0:00:06.2]} 69... Kg8 {[%clk 0:00:04.8]} 70. Qe8+ {[%clk 0:00:06.2]}
70... Kh7 {[%clk 0:00:05.4]} 71. Qe4+ {[%clk 0:00:04.2]} 71... Kg7 {[%clk
0:00:05.2]} 72. Qe7+ {[%clk 0:00:04.3]} 72... Kg6 {[%clk 0:00:05.7]} 73. Qe6+
{[%clk 0:00:03.4]} 73... Kg7 {[%clk 0:00:06.1]} 74. Qe7+ {[%clk 0:00:03.4]}
1/2-1/2

[Event "*** Titled Tuesday Blitz"]
[Site "Chess.com"]
[Date "2020.11.24"]
[Round "6"]
[White "BocharovD"]
[Black "Jospem"]
[Result "0-1"]
[WhiteElo "2808"]
[BlackElo "3061"]
[TimeControl "180+1"]
[EndTime "11:24:21 PST"]
[Termination "Jospem won on time"]

1. c4 {[%clk 0:02:58.4]} 1... c5 {[%clk 0:02:59.4]} 2. Nf3 {[%clk 0:02:57]} 2...
Nc6 {[%clk 0:02:59.2]} 3. d4 {[%clk 0:02:56.1]} 3... cxd4 {[%clk 0:02:59.6]} 4.
Nxd4 {[%clk 0:02:57]} 4... g6 {[%clk 0:03:00]} 5. e4 {[%clk 0:02:56.3]} 5... Bg7
{[%clk 0:02:59.9]} 6. Be3 {[%clk 0:02:56.8]} 6... Nf6 {[%clk 0:02:59.8]} 7. Nc3
{[%clk 0:02:57]} 7... d6 {[%clk 0:02:56.5]} 8. Be2 {[%clk 0:02:53.3]} 8... O-O
{[%clk 0:02:56.2]} 9. O-O {[%clk 0:02:52.8]} 9... Bd7 {[%clk 0:02:51.2]} 10. Qd2
{[%clk 0:02:47.7]} 10... Nxd4 {[%clk 0:02:48.3]} 11. Bxd4 {[%clk 0:02:48.6]}
11... Bc6 {[%clk 0:02:49]} 12. f3 {[%clk 0:02:48.9]} 12... a5 {[%clk 0:02:49.7]}
13. b3 {[%clk 0:02:48.4]} 13... Nd7 {[%clk 0:02:49.9]} 14. Bf2 {[%clk
0:02:47.9]} 14... Nc5 {[%clk 0:02:49.8]} 15. Rab1 {[%clk 0:02:47.3]} 15... Be5
{[%clk 0:02:47.2]} 16. Bd1 {[%clk 0:02:45.8]} 16... e6 {[%clk 0:02:45.6]} 17.
Bc2 {[%clk 0:02:40.9]} 17... Qe7 {[%clk 0:02:36.5]} 18. Rbd1 {[%clk 0:02:22.6]}
18... f5 {[%clk 0:01:53.7]} 19. exf5 {[%clk 0:02:21.3]} 19... gxf5 {[%clk
0:01:54.6]} 20. Rfe1 {[%clk 0:02:17.1]} 20... Rad8 {[%clk 0:01:47.3]} 21. Bd4
{[%clk 0:02:07.2]} 21... Bxd4+ {[%clk 0:01:24.1]} 22. Qxd4 {[%clk 0:02:08.1]}
22... e5 {[%clk 0:01:23.4]} 23. Qd2 {[%clk 0:02:00.6]} 23... Qg7 {[%clk
0:01:22.5]} 24. Nd5 {[%clk 0:01:39.4]} 24... Kh8 {[%clk 0:01:22.4]} 25. Qxa5
{[%clk 0:01:37.2]} 25... Ra8 {[%clk 0:01:15.2]} 26. Qc3 {[%clk 0:01:30.4]} 26...
Rxa2 {[%clk 0:00:53.3]} 27. Re2 {[%clk 0:01:24.6]} 27... Ne6 {[%clk 0:00:49.2]}
28. Nb4 {[%clk 0:01:16.1]} 28... Nf4 {[%clk 0:00:43.8]} 29. Red2 {[%clk
0:01:16]} 29... Raa8 {[%clk 0:00:30.3]} 30. Nxc6 {[%clk 0:01:13.5]} 30... bxc6
{[%clk 0:00:30.1]} 31. g3 {[%clk 0:01:14.1]} 31... d5 {[%clk 0:00:25.9]} 32.
cxd5 {[%clk 0:01:07.5]} 32... cxd5 {[%clk 0:00:26.8]} 33. Kh1 {[%clk 0:01:03.3]}
33... d4 {[%clk 0:00:27.1]} 34. Qc6 {[%clk 0:00:57.9]} 34... Ng6 {[%clk
0:00:23.7]} 35. Bxf5 {[%clk 0:00:54.8]} 35... Ne7 {[%clk 0:00:23.4]} 36. Qe4
{[%clk 0:00:45.7]} 36... Nxf5 {[%clk 0:00:22.7]} 37. f4 {[%clk 0:00:46.1]} 37...
Rae8 {[%clk 0:00:21.4]} 38. Re1 {[%clk 0:00:43.5]} 38... Nd6 {[%clk 0:00:13.6]}
39. Qd5 {[%clk 0:00:43]} 39... exf4 {[%clk 0:00:13.6]} 40. Rxe8 {[%clk
0:00:41.7]} 40... Nxe8 {[%clk 0:00:14]} 41. Qxd4 {[%clk 0:00:39.4]} 41... fxg3
{[%clk 0:00:14.3]} 42. hxg3 {[%clk 0:00:38.6]} 42... Nf6 {[%clk 0:00:13.3]} 43.
Kg2 {[%clk 0:00:38.3]} 43... Rg8 {[%clk 0:00:09.8]} 44. Rd3 {[%clk 0:00:38.8]}
44... Ng4 {[%clk 0:00:02.3]} 45. b4 {[%clk 0:00:32.9]} 45... Ne5 {[%clk
0:00:02.5]} 46. Re3 {[%clk 0:00:32.3]} 46... Nf7 {[%clk 0:00:02.8]} 47. Qxg7+
{[%clk 0:00:26.5]} 47... Kxg7 {[%clk 0:00:03.7]} 48. b5 {[%clk 0:00:26.5]} 48...
Rb8 {[%clk 0:00:04.3]} 49. Rb3 {[%clk 0:00:26]} 49... Rb6 {[%clk 0:00:05]} 50.
Kh3 {[%clk 0:00:21.7]} 50... Nd6 {[%clk 0:00:05.5]} 51. g4 {[%clk 0:00:18.5]}
51... Rxb5 {[%clk 0:00:05.3]} 52. Rd3 {[%clk 0:00:18.8]} 52... Nf7 {[%clk
0:00:04.8]} 53. Kh4 {[%clk 0:00:19.2]} 53... Rb1 {[%clk 0:00:04.7]} 54. Ra3
{[%clk 0:00:17.5]} 54... Rh1+ {[%clk 0:00:05.2]} 55. Kg3 {[%clk 0:00:17.8]}
55... Rg1+ {[%clk 0:00:05.7]} 56. Kh4 {[%clk 0:00:18]} 56... Rh1+ {[%clk
0:00:05.7]} 57. Kg3 {[%clk 0:00:17.8]} 57... Rc1 {[%clk 0:00:06.3]} 58. Ra6
{[%clk 0:00:17.4]} 58... Rc5 {[%clk 0:00:06.3]} 59. Kh4 {[%clk 0:00:17.5]} 59...
Rc3 {[%clk 0:00:05.6]} 60. Ra7 {[%clk 0:00:17.8]} 60... h6 {[%clk 0:00:05.2]}
61. Rb7 {[%clk 0:00:17.2]} 61... Rc6 {[%clk 0:00:03.6]} 62. Rb1 {[%clk
0:00:11.7]} 62... Kg6 {[%clk 0:00:03.6]} 63. Rb3 {[%clk 0:00:11.7]} 63... Ng5
{[%clk 0:00:04.2]} 64. Rd3 {[%clk 0:00:11.1]} 64... Rf6 {[%clk 0:00:04.7]} 65.
Ra3 {[%clk 0:00:10.7]} 65... Re6 {[%clk 0:00:05.2]} 66. Rb3 {[%clk 0:00:10.7]}
66... Nh7 {[%clk 0:00:05.5]} 67. Rb5 {[%clk 0:00:10]} 67... Re4 {[%clk
0:00:05.3]} 68. Rb6+ {[%clk 0:00:02.8]} 68... Nf6 {[%clk 0:00:05.8]} 69. Kh3
{[%clk 0:00:03.7]} 69... Rf4 {[%clk 0:00:05.3]} 70. Ra6 {[%clk 0:00:03.6]} 70...
Kg5 {[%clk 0:00:05.5]} 71. Ra5+ {[%clk 0:00:04]} 71... Kg6 {[%clk 0:00:05.7]}
72. Ra6 {[%clk 0:00:04.9]} 72... Rc4 {[%clk 0:00:04.6]} 73. Rb6 {[%clk
0:00:03.2]} 73... Ra4 {[%clk 0:00:04.5]} 74. Rc6 {[%clk 0:00:03.4]} 74... Kf7
{[%clk 0:00:04.9]} 0-1